fUST/lending_fUST_20250729
["ID","MTS","AMOUNT","RATE_DAILY","PERIOD"]
[375883698,1753773061750,-209.08,0.00023677,2]
[375883700,1753773061760,-523.25,0.00023684,5]
[375883702,1753773061769,-523.25,0.00023684,4]
[375883704,1753773061780,-151.0,0.000237,7]
[375883706,1753773061789,-552.35,0.00023701,7]
[375883708,1753773061799,-2698.64780028,0.00023735,2]
[375883710,1753773061808,-523.25,0.00023784,6]
[375883711,1753773061817,-523.25,0.00023784,7]
[375883713,1753773061827,-3939.27,0.000238,7]
[375883715,1753773061837,-704.21,0.000238,7]
[375883717,1753773061846,-160.0,0.000238,7]
[375883719,1753773061856,-552.35,0.00023801,3]
[375883721,1753773061865,-554.45,0.00023835,2]
[375883723,1753773061875,-646.26,0.00023835,2]
[375883725,1753773061887,-2591.2,0.00023835,2]
[375883727,1753773061896,-460.0,0.00023835,2]
[375883729,1753773061905,-758.96,0.00023835,2]
[375883731,1753773061914,-1199.98,0.00023835,2]
[375883733,1753773061924,-856.83,0.00023835,2]
[375883735,1753773061933,-1685.68,0.00023835,2]
[375883737,1753773061942,-583.14,0.00023835,2]
[375883739,1753773061952,-524.67,0.00023835,2]
[375883740,1753773061961,-766.35,0.00023835,2]
[375883742,1753773061971,-501.32,0.00023835,2]
[375883744,1753773061980,-547.15,0.00023835,2]
[375883746,1753773061989,-691.24,0.00023835,2]
[375883748,1753773061999,-475.76,0.00023835,2]
[375883750,1753773062008,-765.0,0.00023842,5]
[375883752,1753773062017,-523.25,0.00023884,3]
[375883754,1753773062026,-523.25,0.00023884,7]
[375883756,1753773062036,-3961.15986548,0.000239,2]
[375883758,1753773062045,-552.35,0.00023901,3]
[375883760,1753773062055,-276.45,0.00023932,2]
[375883762,1753773062064,-523.25,0.00023984,6]
[375883764,1753773062073,-523.25,0.00023984,5]
[375883766,1753773062083,-12003.91,0.00024,2]
[375883768,1753773062092,-160.0,0.00024,7]
[375883770,1753773062101,-526.67226028,0.00024,7]
[375883771,1753773062184,-552.35,0.00024001,5]
[375883772,1753773062200,-523.25,0.00024084,4]
[375883773,1753773062210,-552.35,0.00024101,5]
[375883774,1753773062221,-150.0,0.00024108,2]
[375883775,1753773062231,-554.45,0.00024109,2]
[375883776,1753773062241,-646.26,0.00024109,2]
[375883777,1753773062251,-460.0,0.00024109,2]
[375883778,1753773062260,-2591.2,0.00024109,2]
[375883779,1753773062269,-758.96,0.00024109,2]
[375883780,1753773062279,-1199.98,0.00024109,2]
[375883781,1753773062288,-856.83,0.00024109,2]
[375883782,1753773062297,-1685.68,0.00024109,2]
[375883783,1753773062307,-583.14,0.00024109,2]
[375883784,1753773062319,-524.67,0.00024109,2]
[375883785,1753773062328,-766.35,0.00024109,2]
[375883786,1753773062337,-501.32,0.00024109,2]
[375883787,1753773062347,-547.15,0.00024109,2]
[375883788,1753773062358,-691.24,0.00024109,2]
[375883789,1753773062367,-475.76,0.00024109,2]
[375883790,1753773062376,-523.25,0.00024184,5]
[375883791,1753773062387,-552.35,0.00024201,4]
[375883792,1753773062397,-209.08,0.00024237,2]
[375883793,1753773062406,-500.0,0.00024238,2]
[375883794,1753773062416,-765.0,0.00024266,6]
[375883795,1753773062425,-523.25,0.00024284,2]
[375883796,1753773062434,-151.0,0.000243,10]
[375883797,1753773062444,-552.35291215,0.00024301,6]
[375883798,1753773062453,-823.0,0.00024346,2]
[375883799,1753773062463,-3292.0,0.00024347,2]
[375883800,1753773062472,-479.0,0.00024347,2]
[375883801,1753773062482,-823.0,0.00024347,2]
[375883802,1753773062491,-823.0,0.00024347,2]
[375883804,1753773062500,-732.0,0.00024347,2]
[375883805,1753773062510,-554.45,0.00024383,2]
[375883806,1753773062520,-646.26,0.00024383,2]
[375883807,1753773062530,-213.27,0.00024383,2]
[375883808,1753773062539,-2591.2,0.00024383,2]
[375883809,1753773062548,-758.96,0.00024383,2]
[375883810,1753773062558,-1199.98,0.00024383,2]
[375883811,1753773062567,-856.83,0.00024383,2]
[375883812,1753773062577,-1685.68,0.00024383,2]
[375883813,1753773062586,-583.14,0.00024383,2]
[375883814,1753773062595,-524.67,0.00024383,2]
[375883815,1753773062605,-766.35,0.00024383,2]
[375883816,1753773062614,-501.32,0.00024383,2]
[375883817,1753773062623,-547.15,0.00024383,2]
[375883818,1753773062634,-691.24,0.00024383,2]
[375883819,1753773062644,-475.76,0.00024383,2]
[375883820,1753773062653,-523.25,0.00024384,2]
[375883821,1753773062663,-1722.77985648,0.000244,2]
[375883822,1753773062673,-7032.84396064,0.000244,2]
[375883823,1753773062682,-158.0,0.00024438,13]
[375883824,1753773062691,-523.25,0.00024484,5]
[375883826,1753773062701,-297.33241286,0.000245,2]
[375883828,1753773062711,-462228.77933357,0.000245,4]
[375883830,1753773062734,-124442.37066643,0.000245,4]
[375883832,1753773062743,-151.569216,0.000245,7]
[375883833,1753773062753,-151.0,0.000245,7]
[375883835,1753773062762,-151.0,0.000245,7]
[375883837,1753773062771,-151.0,0.000245,7]
[375883839,1753773062780,-152.717139,0.000245,7]
[375883840,1753773062790,-151.0,0.000245,7]
[375883841,1753773062799,-151.0,0.000245,7]
[375883843,1753773062809,-151.0,0.000245,7]
[375883845,1753773062818,-151.0,0.000245,7]
[375883847,1753773062827,-151.0,0.000245,7]
[375883849,1753773062837,-151.0,0.000245,7]
[375883851,1753773062847,-151.0,0.000245,7]
[375883853,1753773062856,-151.0,0.000245,7]
[375883855,1753773062866,-241.558136,0.000245,7]
[375883857,1753773062875,-151.0,0.000245,7]
[375883859,1753773062886,-151.0,0.000245,7]
[375883861,1753773062895,-151.0,0.000245,7]
[375883863,1753773062905,-152.227659,0.000245,7]
[375883865,1753773062914,-151.0,0.000245,7]
[375883867,1753773062924,-151.0,0.000245,7]
[375883869,1753773062933,-151.0,0.000245,7]
[375883871,1753773062942,-151.0,0.000245,7]
[375883873,1753773062952,-151.0,0.000245,7]
[375883875,1753773062961,-151.0,0.000245,7]
[375883877,1753773062971,-523.25,0.00024584,6]
[375883878,1753773062980,-1000.0,0.00024597,5]
[375883880,1753773062989,-1722.7798564,0.00024619,2]
[375883882,1753773062999,-554.45,0.00024657,2]
[375883884,1753773063009,-646.26,0.00024657,2]
[375883886,1753773063019,-2591.2,0.00024657,2]
[375883888,1753773063031,-758.96,0.00024657,2]
[375883891,1753773063042,-1199.98,0.00024657,2]
[375883892,1753773063052,-856.83,0.00024657,2]
[375883894,1753773063062,-1685.68,0.00024657,2]
[375883896,1753773063072,-583.14,0.00024657,2]
[375883899,1753773063082,-524.67,0.00024657,2]
[375883900,1753773063092,-766.35,0.00024657,2]
[375883902,1753773063102,-501.32,0.00024657,2]
[375883904,1753773063112,-547.15,0.00024657,2]
[375883907,1753773063123,-691.24,0.00024657,2]
[375883908,1753773063133,-475.76,0.00024657,2]
[375883910,1753773063144,-185.78895639,0.00024658,2]
[375883913,1753773063155,-151.0,0.00024658,7]
[375883914,1753773063165,-155.409083,0.00024658,7]
[375883917,1753773063175,-687.49102066,0.00024658,2]
[375883919,1753773063185,-2749.96408264,0.00024658,2]
[375883921,1753773063195,-6181.23176675,0.00024658,2]
[375883922,1753773063205,-388.146258,0.00024658,2]
[375883925,1753773063214,-1551.03244698,0.00024658,2]
[375883926,1753773063224,-150.0,0.00024682,2]
[375883928,1753773063234,-765.0,0.0002469,6]
[375883931,1753773063244,-3292.0,0.00024703,2]
[375883933,1753773063254,-168.0,0.00024738,2]
[375883935,1753773063264,-250.0,0.00024793,2]
[375883937,1753773063273,-209.08,0.00024796,2]
[375883939,1753773063282,-1699.05,0.000248,7]
[375883940,1753773063292,-32768.1227944,0.000248,2]
[375883942,1753773063302,-449.079376,0.00024827,2]
[375883945,1753773063314,-1722.7798564,0.00024838,2]
[375883947,1753773063324,-151.0,0.000249,7]
[375883948,1753773063334,-151.0,0.000249,7]
[375883950,1753773063343,-151.0,0.000249,7]
[375883952,1753773063353,-151.0,0.000249,7]
[375883954,1753773063363,-151.0,0.000249,7]
[375883956,1753773063372,-151.0,0.000249,7]
[375883957,1753773063383,-151.0,0.000249,7]
[375883959,1753773063395,-151.0,0.000249,7]
[375883960,1753773063407,-151.0,0.000249,7]
[375883961,1753773063416,-151.0,0.000249,7]
[375883962,1753773063426,-151.0,0.000249,7]
[375883963,1753773063436,-151.0,0.000249,7]
[375883964,1753773063445,-46038.5052424,0.000249,2]
[375883975,1753773063671,-361.68885168,0.0001878,2]
[375883976,1753773063681,-460.0,0.00019178,2]
[375883977,1753773063691,-460.0,0.00019178,2]
[375883978,1753773063701,-460.0,0.00019178,2]
[375883979,1753773063711,-460.0,0.00019178,2]
[375883980,1753773063721,-460.0,0.00019452,2]
[375883981,1753773063732,-460.0,0.00019452,2]
[375883982,1753773063742,-460.0,0.00019452,2]
[375883983,1753773063752,-460.0,0.00019452,2]
[375883984,1753773063763,-460.0,0.00019726,2]
[375883985,1753773063773,-375.7819879,0.00019726,2]
[375883986,1753773063783,-460.0,0.00019726,2]
[375883987,1753773063793,-460.0,0.00019726,2]
[375883988,1753773063802,-460.0,0.0002,2]
[375883989,1753773063811,-460.0,0.00020273,2]
[375883990,1753773063821,-1000.0,0.00020368,3]
[375883991,1753773063831,-460.0,0.00020547,2]
[375883992,1753773063840,-561.71308084,0.00020821,2]
[375883993,1753773063849,-813.44035641,0.000249,2]
[375883994,1753773063902,341.35428555,0.00018501,2]
[375883995,1753773064010,4658.64571445,0.00018501,2]
[375883996,1753773064651,-4403.43832251,0.00019178,2]
[375883997,1753773076958,5000.0,0.000191,6]
[375883998,1753773092787,5000.0,0.000191,6]
[375883999,1753773092815,202.59879135,0.00018448,2]
[375884000,1753773108166,5000.0,0.000191,6]
[375884001,1753773124513,5000.0,0.00018501,2]
[375884002,1753773139969,5000.0,0.00018501,2]
[375884003,1753773157861,1924.0602699,0.00018501,2]
[375884004,1753773166996,1021.8384361,0.0001823,2]
[375884005,1753773195066,22192.8567882,0.00018038,2]
[375884006,1753773195215,2707.1432118,0.00018038,2]
[375884007,1753773232768,207.9225774,0.00018011,2]
[375884008,1753773319898,160.73017508,0.00018209,2]
[375884009,1753773383809,150.0,0.00015032,30]
[375884011,1753773527946,150.0,0.00015951,30]
[375884012,1753773580954,10000.0,0.00017884,2]
[375884013,1753773596663,150.0,0.00015678,30]
[375884019,1753773811373,150.0,0.00014986,30]
[375884020,1753773812535,154.64413855,0.00018501,2]
[375884021,1753773854735,-161.43190931,0.00018673,2]
[375884022,1753773854758,-161.4319093,0.00018727,2]
[375884023,1753773854780,-160.0,0.00018772,2]
[375884024,1753773854802,-280.65641991,0.00018773,2]
[375884025,1753773854824,-505.16990828,0.00018773,2]
[375884026,1753773854846,-500.0,0.00018773,2]
[375884027,1753773854870,-161.4319093,0.00018781,2]
[375884028,1753773854893,-161.4319093,0.00018835,2]
[375884029,1753773854916,-300.0,0.0001887,2]
[375884030,1753773854938,-22608.4460346,0.00018871,2]
[375884032,1753773952617,150.0,0.00015002,30]
[375884033,1753774000371,707.529996,0.00017876,2]
[375884034,1753774068335,26062.02990117,0.00018,2]
[375884035,1753774068360,36953.74862059,0.00018,2]
[375884036,1753774071991,165.96924032,0.00018,2]
[375884038,1753774113593,2880.28213909,0.00018,2]
[375884039,1753774113617,29824.04331235,0.00018,2]
[375884040,1753774115905,10175.95668765,0.00018,2]
[375884041,1753774115929,17437.45927614,0.00018,2]
[375884042,1753774153111,-947.60860821,0.00018395,2]
[375884043,1753774171154,-91.66559727,0.00018395,2]
[375884044,1753774171175,-177.94208725,0.00018481,2]
[375884045,1753774171197,-161.43190931,0.00018481,2]
[375884046,1753774171230,-161.4319093,0.00018554,2]
[375884047,1753774171254,-342.13735317,0.00018581,2]
[375884049,1753774213459,229.297583,0.00013699,2]
[375884081,1753774232069,-262.58041745,0.00018581,2]
[375884102,1753774232207,-858.71832445,0.00018581,2]
[375884322,1753774236972,360.0,0.00018101,2]
[375884337,1753774238234,-1033.58533371,0.00018581,2]
[375884340,1753774238246,-1000.9999859,0.00018581,2]
[375884342,1753774238257,-1173.76831532,0.00018581,2]
[375884344,1753774238268,-328.21027,0.00018581,2]
[375884346,1753774238278,-161.4319093,0.00018627,2]
[375884348,1753774238288,-161.4319093,0.000187,2]
[375884350,1753774238298,-160.0,0.00018773,2]
[375884352,1753774238307,-222.52460057,0.00018773,3]
[375884354,1753774238317,-161.4319093,0.00018773,2]
[375884356,1753774238326,-1043.01131051,0.00018868,2]
[375884358,1753774238338,-156.98868949,0.00018868,2]
[375884360,1753774238348,-1136.48005193,0.00018869,2]
[375884363,1753774238359,-63.51994807,0.00018869,2]
[375884365,1753774238369,-300.0,0.00018869,2]
[375884367,1753774238378,-81.47956099,0.00018869,2]
[375884369,1753774238389,-218.52043901,0.00018869,2]
[375884371,1753774238399,-300.0,0.00018869,2]
[375884373,1753774238408,-300.0,0.00018869,2]
[375884375,1753774238417,-186.70167531,0.00018869,2]
[375884404,1753774238692,-113.29832469,0.00018869,2]
[375884406,1753774238702,-50000.0,0.00018869,2]
[375884408,1753774238712,-210.71103877,0.00018873,2]
[375884410,1753774238721,-500.0,0.00018873,2]
[375884412,1753774238731,-500.0,0.00018873,2]
[375884414,1753774238741,-225.08456515,0.00018873,2]
[375884416,1753774238751,-501.26455396,0.00018873,2]
[375884418,1753774238761,-500.7912942,0.00018873,2]
[375884420,1753774238771,-500.0,0.00018873,2]
[375884422,1753774238781,-500.0,0.00018873,2]
[375884424,1753774238791,-4353.22063751,0.000189,2]
[375884426,1753774238801,-219.29865201,0.00018972,2]
[375884428,1753774238810,-500.57306829,0.00018973,2]
[375884430,1753774238819,-500.0,0.00018973,2]
[375884432,1753774238829,-506.35363636,0.00018973,2]
[375884434,1753774238838,-526.53969877,0.00018973,2]
[375884436,1753774238848,-500.95983126,0.00018973,2]
[375884438,1753774238857,-501.13003715,0.00018973,2]
[375884440,1753774238866,-501.70713998,0.00018973,2]
[375884442,1753774238876,-500.0,0.00018973,2]
[375884444,1753774238886,-500.0,0.00018973,2]
[375884446,1753774238895,-501.55761805,0.00018973,2]
[375884448,1753774238905,-500.0,0.00018973,2]
[375884450,1753774238914,-500.0,0.00018973,2]
[375884452,1753774238924,-505.16990828,0.00018973,2]
[375884454,1753774238933,-500.0,0.00018973,2]
[375884456,1753774238943,-500.0,0.00018973,2]
[375884458,1753774238953,-500.0,0.00018973,2]
[375884460,1753774238962,-280.65641991,0.00018973,2]
[375884462,1753774238971,-500.49962936,0.00018973,2]
[375884464,1753774238981,-500.51709364,0.00018973,2]
[375884466,1753774238990,-500.0,0.00018973,2]
[375884468,1753774239000,-500.0,0.00018973,2]
[375884470,1753774239009,-500.0,0.00018973,2]
[375884472,1753774239018,-176.85093829,0.00018973,2]
[375884474,1753774239028,-501.21554382,0.00018973,2]
[375884476,1753774239037,-500.51102308,0.00018973,2]
[375884478,1753774239046,-500.0,0.00018973,2]
[375884480,1753774239056,-7475.90643146,0.00018973,2]
[375884482,1753774239065,-487.27015085,0.00018978,2]
[375884484,1753774239074,-174.55,0.0001898,3]
[375884486,1753774239084,-523.67,0.0001898,3]
[375884488,1753774239093,-374.04,0.0001898,3]
[375884490,1753774239102,-187.02,0.0001898,3]
[375884492,1753774239111,-561.1,0.0001898,3]
[375884494,1753774239121,-716.65,0.0001898,3]
[375884496,1753774239130,-166.29514279,0.00018986,3]
[375884498,1753774239139,-500.0,0.00018987,2]
[375884500,1753774239149,-201.82122837,0.00018987,2]
[375884502,1753774239159,-500.0,0.00018987,2]
[375884503,1753774239168,-409.68522204,0.00018987,2]
[375884505,1753774239181,-500.0,0.00018987,2]
[375884508,1753774239195,-616.25045148,0.00018987,2]
[375884510,1753774239205,-500.0,0.00018987,2]
[375884512,1753774239215,-500.0,0.00018987,2]
[375884513,1753774239224,-404.51981187,0.00018987,2]
[375884515,1753774239235,-500.0,0.00018987,2]
[375884518,1753774239244,-500.0,0.00018987,2]
[375884520,1753774239255,-500.0,0.00018987,2]
[375884522,1753774239265,-490.65685788,0.00018987,2]
[375884523,1753774239274,-500.0,0.00018987,2]
[375884526,1753774239284,-500.0,0.00018987,2]
[375884527,1753774239293,-500.0,0.00018987,2]
[375884530,1753774239303,-500.0,0.00018987,2]
[375884531,1753774239312,-500.0,0.00018987,2]
[375884534,1753774239322,-500.0,0.00018987,2]
[375884536,1753774239331,-432.95311036,0.00018987,2]
[375884538,1753774239340,-500.0,0.00018987,2]
[375884539,1753774239350,-500.0,0.00018987,2]
[375884541,1753774239359,-500.0,0.00018987,2]
[375884544,1753774239368,-500.0,0.00018987,2]
[375884546,1753774239378,-500.0,0.00018987,2]
[375884548,1753774239388,-500.0,0.00018987,2]
[375884550,1753774239397,-500.0,0.00018987,2]
[375884551,1753774239407,-500.0,0.00018987,2]
[375884553,1753774239416,-500.0,0.00018987,2]
[375884555,1753774239430,-500.0,0.00018987,2]
[375884558,1753774239441,-500.0,0.00018987,2]
[375884559,1753774239450,-500.0,0.00018987,2]
[375884562,1753774239460,-449.11561894,0.00018987,2]
[375884564,1753774239470,-500.0,0.00018987,2]
[375884566,1753774239480,-500.0,0.00018987,2]
[375884568,1753774239489,-500.0,0.00018987,2]
[375884570,1753774239499,-500.0,0.00018987,2]
[375884572,1753774239508,-500.0,0.00018987,2]
[375884574,1753774239518,-500.0,0.00018987,2]
[375884576,1753774239528,-500.0,0.00018987,2]
[375884579,1753774239537,-500.0,0.00018987,2]
[375884581,1753774239547,-500.0,0.00018989,2]
[375884583,1753774239556,-370000.0,0.0001899,2]
[375884585,1753774239566,-1736.24301336,0.00019073,2]
[375884587,1753774239575,-837.13758042,0.00019078,2]
[375884589,1753774239584,-501.98986939,0.00019173,2]
[375884591,1753774239593,-500.0,0.00019173,2]
[375884592,1753774239603,-271.1829761,0.00019173,2]
[375884594,1753774239612,-501.07928463,0.00019173,2]
[375884597,1753774239622,-501.16009197,0.00019173,2]
[375884599,1753774239632,-501.49083511,0.00019173,2]
[375884600,1753774239643,-500.35188838,0.00019173,2]
[375884603,1753774239654,-500.0,0.00019173,2]
[375884605,1753774239667,-500.0,0.00019173,2]
[375884606,1753774239679,-500.0,0.00019173,2]
[375884609,1753774239689,-514.4452744,0.00019173,2]
[375884611,1753774239699,-500.0,0.00019173,2]
[375884612,1753774239709,-500.0,0.00019173,2]
[375884615,1753774239719,-501.537476,0.00019173,2]
[375884616,1753774239728,-500.0,0.00019173,2]
[375884618,1753774239740,-505.55700613,0.00019173,2]
[375884620,1753774239750,-501.47707368,0.00019173,2]
[375884622,1753774239759,-500.81124139,0.00019173,2]
[375884624,1753774239769,-501.11774206,0.00019173,2]
[375884626,1753774239779,-501.18185599,0.00019173,2]
[375884628,1753774239788,-500.0,0.00019173,2]
[375884630,1753774239797,-208.83618979,0.00019173,2]
[375884632,1753774239807,-500.0,0.00019173,2]
[375884634,1753774239816,-155.0,0.00019177,2]
[375884636,1753774239826,-3017.775365,0.00019177,2]
[375884638,1753774239835,-460.0,0.00019178,2]
[375884640,1753774239846,-460.0,0.00019178,2]
[375884642,1753774239856,-460.0,0.00019178,2]
[375884644,1753774239865,-601.18782522,0.00019178,2]
[375884646,1753774239875,-460.0,0.00019178,2]
[375884648,1753774239884,-460.0,0.00019178,2]
[375884650,1753774239894,-460.0,0.00019178,2]
[375884652,1753774239903,-460.0,0.00019178,2]
[375884654,1753774239912,-460.0,0.00019178,2]
[375884656,1753774239921,-460.0,0.00019178,2]
[375884658,1753774239932,-460.0,0.00019178,2]
[375884660,1753774239942,-462.50305147,0.00019178,2]
[375884662,1753774239952,-460.0,0.00019178,2]
[375884664,1753774239961,-460.0,0.00019178,2]
[375884666,1753774239971,-460.0,0.00019178,2]
[375884668,1753774239981,-460.0,0.00019178,2]
[375884670,1753774239991,-277.8817424,0.00019178,2]
[375884672,1753774240001,-460.0,0.00019178,2]
[375884674,1753774240011,-351.71629778,0.00019178,2]
[375884676,1753774240021,-460.0,0.00019178,2]
[375884678,1753774240031,-460.0,0.00019178,2]
[375884680,1753774240040,-460.0,0.00019178,2]
[375884682,1753774240050,-460.0,0.00019178,2]
[375884684,1753774240059,-447.8071498,0.00019178,2]
[375884686,1753774240068,-460.0,0.00019178,2]
[375884688,1753774240078,-460.0,0.00019178,2]
[375884690,1753774240087,-460.0,0.00019178,2]
[375884692,1753774240097,-460.0,0.00019178,2]
[375884694,1753774240107,-460.0,0.00019178,2]
[375884696,1753774240116,-460.0,0.00019178,2]
[375884698,1753774240125,-460.0,0.00019178,2]
[375884700,1753774240135,-460.0,0.00019178,2]
[375884702,1753774240144,-460.0,0.00019178,2]
[375884704,1753774240154,-494.15987481,0.00019178,2]
[375884707,1753774240163,-460.44561099,0.00019178,2]
[375884709,1753774240175,-460.0,0.00019178,2]
[375884710,1753774240185,-460.0,0.00019178,2]
[375884712,1753774240195,-460.0,0.00019178,2]
[375884715,1753774240204,-460.0,0.00019178,2]
[375884717,1753774240215,-463.27219842,0.00019178,2]
[375884719,1753774240224,-460.0,0.00019178,2]
[375884721,1753774240233,-460.0,0.00019178,2]
[375884723,1753774240242,-460.0,0.00019178,2]
[375884725,1753774240252,-461.06408683,0.00019178,2]
[375884727,1753774240261,-460.0,0.00019178,2]
[375884729,1753774240270,-460.0,0.00019178,2]
[375884731,1753774240279,-460.0,0.00019178,2]
[375884733,1753774240288,-460.0,0.00019178,2]
[375884735,1753774240297,-358.69951484,0.00019178,2]
[375884737,1753774240305,-460.0,0.00019178,2]
[375884738,1753774240314,-511.46560789,0.00019178,2]
[375884741,1753774240323,-460.0,0.00019178,2]
[375884743,1753774240333,-460.0,0.00019178,2]
[375884746,1753774240342,-462.07969999,0.00019178,2]
[375884749,1753774240351,-460.0,0.00019178,2]
[375884751,1753774240360,-158.09954755,0.00019178,2]
[375884753,1753774240369,-460.0,0.00019178,2]
[375884754,1753774240378,-460.0,0.00019178,2]
[375884757,1753774240388,-460.0,0.00019178,2]
[375884759,1753774240397,-460.0,0.00019178,2]
[375884760,1753774240406,-460.0,0.00019178,2]
[375884762,1753774240415,-460.5618029,0.00019178,2]
[375884764,1753774240425,-461.42057068,0.00019178,2]
[375884767,1753774240434,-348.1456239,0.00019178,2]
[375884769,1753774240444,-460.0,0.00019178,2]
[375884771,1753774240452,-460.0,0.00019178,2]
[375884773,1753774240461,-342.00343034,0.00019178,2]
[375884774,1753774240471,-423.62188996,0.00019178,2]
[375884777,1753774240480,-460.0,0.00019178,2]
[375884779,1753774240489,-460.0,0.00019178,2]
[375884781,1753774240498,-460.0,0.00019178,2]
[375884783,1753774240507,-460.0,0.00019178,2]
[375884785,1753774240516,-460.0,0.00019178,2]
[375884786,1753774240526,-460.0,0.00019178,2]
[375884788,1753774240535,-460.0,0.00019178,2]
[375884790,1753774240545,-460.0,0.00019178,2]
[375884792,1753774240554,-460.0,0.00019178,2]
[375884795,1753774240564,-460.0,0.00019178,2]
[375884797,1753774240573,-460.0,0.00019178,2]
[375884799,1753774240583,-460.0,0.00019178,2]
[375884802,1753774240601,-460.0,0.00019178,2]
[375884804,1753774240612,-460.0,0.00019178,2]
[375884806,1753774240621,-460.0,0.00019178,2]
[375884808,1753774240631,-460.0,0.00019178,2]
[375884810,1753774240640,-460.0,0.00019178,2]
[375884812,1753774240649,-460.0,0.00019178,2]
[375884814,1753774240662,-460.0,0.00019178,2]
[375884831,1753774240817,-460.0,0.00019178,2]
[375884833,1753774240826,-460.0,0.00019178,2]
[375884835,1753774240836,-460.0,0.00019178,2]
[375884837,1753774240845,-460.0,0.00019178,2]
[375884839,1753774240855,-460.0,0.00019178,2]
[375884841,1753774240864,-460.0,0.00019178,2]
[375884843,1753774240874,-460.0,0.00019178,2]
[375884845,1753774240883,-460.0,0.00019178,2]
[375884847,1753774240892,-597.67471312,0.00019178,2]
[375884849,1753774240901,-460.0,0.00019178,2]
[375884850,1753774240910,-159.69276201,0.00019178,2]
[375884852,1753774240920,-461.82330426,0.00019178,2]
[375884854,1753774240932,-460.0,0.00019178,2]
[375884856,1753774240941,-460.0,0.00019178,2]
[375884858,1753774240951,-460.0,0.00019178,2]
[375884860,1753774240960,-460.0,0.00019178,2]
[375884862,1753774240970,-460.0,0.00019178,2]
[375884864,1753774240979,-460.0,0.00019178,2]
[375884866,1753774240988,-460.0,0.00019178,2]
[375884868,1753774240998,-460.0,0.00019178,2]
[375884870,1753774241007,-460.0,0.00019178,2]
[375884872,1753774241017,-460.0,0.00019178,2]
[375884874,1753774241026,-335.15570058,0.00019178,2]
[375884876,1753774241035,-460.0,0.00019178,2]
[375884878,1753774241044,-460.0,0.00019178,2]
[375884880,1753774241053,-449.76686508,0.00019178,2]
[375884882,1753774241062,-460.0,0.00019178,2]
[375884884,1753774241071,-463.49149147,0.00019178,2]
[375884886,1753774241080,-460.0,0.00019178,2]
[375884888,1753774241090,-460.0,0.00019178,2]
[375884890,1753774241099,-340.37511657,0.00019178,2]
[375884892,1753774241108,-342.61485273,0.00019178,2]
[375884894,1753774241118,-460.0,0.00019178,2]
[375884896,1753774241128,-465.34175862,0.00019178,2]
[375884898,1753774241137,-460.0,0.00019178,2]
[375884900,1753774241146,-460.0,0.00019178,2]
[375884902,1753774241155,-460.0,0.00019178,2]
[375884904,1753774241165,-460.0,0.00019178,2]
[375884906,1753774241175,-460.0,0.00019178,2]
[375884908,1753774241189,-460.0,0.00019178,2]
[375884910,1753774241198,-460.0,0.00019178,2]
[375884912,1753774241208,-460.0,0.00019178,2]